Cogmind - Beta 14 @@@ ROGUE MODE // 2025.05.04 @ 17:16:22 Player: b_ Result: Destroyed by as-97450 with Assembled Heavy Rifle Performance ------------- Evolutions (0) 0 Regions Visited (0) 0 Robots Destroyed (1) 5 Value Destroyed (53) 53 Prototype IDs (0) 0 Alien Tech Used (0) 0 Bonus (0) 0 TOTAL SCORE: 58 Bonus ------- None Cogmind --------- Core Integrity 0/250 Matter 275/300 Energy 100/100 System Corruption 0% Temperature Cool (0) Movement Core (50) Location -11/Scrapyard Parts ------- > --- POWER (1) -------- (None) > --- PROPULSION (2) --- (None) > --- UTILITY (2) ------ (None) > --- WEAPON (2) ------- Assault Rifle > --- INVENTORY (5) ---- Light Ion Engine Wheel Compact Wheel Small Storage Unit Small Laser Peak State ------------ > --- POWER ------------ (None) > --- PROPULSION ------- (None) > --- UTILITY ---------- (None) > --- WEAPON ----------- Small Laser Assault Rifle > --- INVENTORY -------- Light Ion Engine Wheel Compact Wheel Small Storage Unit [Rating: 2] Favorites ----------- Power None Propulsion None Utility None Weapon Small Laser Energy Gun Small Laser Ballistic Gun Assault Rifle Build | -11 ------- Run | Yrd Slots Evolved . | . Power . | . Propulsion . | . Utility . | . Weapon . | . Parts Attached 2 | 2 Power . | . Engine . | . Core . | . Reactor . | . Propulsion . | . Treads . | . Leg . | . Wheel . | . Hover . | . Flight . | . Utility . | . Device . | . Storage . | . Processor . | . Hackware . | . Protection . | . Artifact . | . Weapon 2 | 2 Energy Gun 1 | 1 Energy Cannon . | . Ballistic Gun 1 | 1 Ballistic Cannon . | . Launcher . | . Special Weapon . | . Impact Weapon . | . Slashing Weapon . | . Piercing Weapon . | . Special Melee Weapon . | . Unidentified Prototypes . | . Parts Lost 1 | 1 Power . | . Propulsion . | . Utility . | . Weapon 1 | 1 Highest Loss Streak 1 | 1 To Critical Strikes . | . Average Slot Usage (%) . | . Peak Build Rating 2 | 2 Average Rating 1 | 1 On Entrance . | . Naked Turns . | . Heaviest Build 3 | 3 Greatest Support 3 | 3 Greatest Overweight (x) . | . Average Overweight (x) . | . Largest Inventory Capacity 5 | 5 Average Capacity 5 | 5 Most Carried 5 | 5 Average Carried 4 | 4 Final Capacity 5 | 5 Final Carried 5 | 5 Class Distribution -------------------- None Dominant Class ---------------- None Resources | -11 ----------- Run | Yrd Matter Collected 220 | 220 Remotely . | . Salvage Created 49 | 49 Parts 3 | 3 Haulers Intercepted . | . Recyclers Shooed . | . Parts Field Recycled . | . Retrieved Matter . | . Parts Self-Destructed . | . Prevented . | . Kills | -11 ------- Run | Yrd Combat Hostiles Destroyed 2 | 2 Guns 2 | 2 Classes Destroyed 2 | 2 Demolisher 1 | 1 Assembled 1 | 1 Best Kill Streak 2 | 2 Combat Bots Only 2 | 2 Max Kills in Single Turn 1 | 1 Gunslinging . | . Exploded . | . Melee . | . Uniques/NPCs Destroyed . | . Combat | -11 -------- Run | Yrd Hostile Shots Fired 27 | 27 Missed 5 | 5 Damage Taken 396 | 396 Core 252 | 252 Absorbed by Shields . | . Core Remaining (%) . | . Volleys Fired 10 | 10 Largest 2 | 2 Hottest 60 | 60 Shots Fired 14 | 14 Gun 14 | 14 Cannon . | . Launcher . | . Special . | . Kinetic 10 | 10 Thermal 4 | 4 Explosive . | . Electromagnetic . | . Robot Hit Streak 7 | 7 Robot Miss Streak 7 | 7 Penetration Max . | . Secondary Targets . | . Shots Hit Robots 7 | 7 Core Hits 4 | 4 Critical Kills . | . Critical Parts Destroyed . | . Critical Strikes . | . Melee Attacks . | . Impact . | . Slashing . | . Piercing . | . Sneak Attacks . | . Combat Hostiles . | . Follow-up Attacks . | . Damage Inflicted 88 | 88 Guns 88 | 88 Cannons . | . Explosions . | . Melee . | . Ramming . | . Kinetic 54 | 54 Thermal 34 | 34 Explosive . | . Electromagnetic . | . Impact . | . Slashing . | . Piercing . | . Highest Corruption . | . Average Corruption . | . Corruption Purged . | . Corruption Blocked . | . Overload Shots . | . Overflow Damage . | . Projectiles . | . Explosions . | . Melee . | . Knockbacks . | . Impact . | . Kinetic . | . Secondary . | . Self-Inflicted Damage . | . Shots . | . Rammed . | . Targets Rammed . | . Kicked . | . Crushed . | . Highest Temperature . | . Average Temperature . | . Received Heat Transfer . | . Siege Activations . | . Robots Corrupted . | . Combat Hostiles . | . Parts Fried . | . Impact Corruptions . | . Robots Melted . | . Combat Hostiles . | . Parts Melted . | . Heat Transferred 75 | 75 Parts Sabotaged . | . Parts Stolen . | . Parts Stripped . | . Power Chain Reactions . | . Alert | -11 ------- Run | Yrd Peak Influence 75 | 75 Initial . | . Average 1 | 1 Maximum Alert Level . | . Low Security (%) 100 | 100 Level 1 . | . Level 2 . | . Level 3 . | . Level 4 . | . Level 5 . | . High Security . | . Max Security . | . Squads Dispatched . | . Investigation . | . Extermination . | . Reinforcement . | . Assault . | . Garrison . | . Intercept . | . Searches Triggered . | . Construction Impeded . | . Haulers Reinforced . | . Active Scanning Responses . | . Cargo Convoy Interrupts . | . Stealth | -11 --------- Run | Yrd Distress Signals . | . Communications Jammed . | . Distress Signals . | . Times Spotted 20 | 20 Peak Tracking Total 11 | 11 Tactical Retreats 1 | 1 Traps | -11 ------- Run | Yrd Traps Triggered . | . Indirectly . | . Trap Hack Attempts . | . Triggered . | . Disarmed . | . Reprogrammed . | . Reused . | . Traps Extracted . | . Installed . | . Triggered . | . Machines | -11 ---------- Run | Yrd Machines Disabled . | . Max in Single Turn . | . Machines Repaired . | . Machines Dismantled . | . Machines Sabotaged . | . Overloaded Fab Kills . | . Hacking | -11 --------- Run | Yrd Machines Accessed . | . Terminals . | . Fabricators . | . Repair Stations . | . Recycling Units . | . Scanalyzers . | . Garrison Access . | . Total Hacks . | . Successful . | . Failed . | . Catastrophic . | . Database Lockouts . | . Manual . | . Terminals . | . Fabricators . | . Repair Stations . | . Recycling Units . | . Scanalyzers . | . Garrison Access . | . Terminal Hacks . | . Fabricator Hacks . | . Repair Station Hacks . | . Recycling Unit Hacks . | . Scanalyzer . | . Garrison Access Hacks . | . Unauthorized Hacks . | . Terminals . | . Fabricators . | . Repair Stations . | . Recycling Units . | . Scanalyzers . | . Garrison Access . | . Data Cores Recovered . | . Used . | . Hacking Detections . | . Full Trace Events . | . Feedback Events . | . Feedback Blocked . | . Robot Schematics Acquired . | . Robots Built . | . Authchips . | . Time . | . Total Robot Build Rating . | . Part Schematics Acquired . | . Parts Built . | . Authchips . | . Time . | . Total Part Build Rating . | . Parts Repaired . | . Time . | . Parts Recycled . | . Recycled Matter . | . Retrieved Matter . | . Retrieved Components . | . Parts Scanalyzed . | . Part Schematics Acquired . | . Parts Damaged . | . Bothacking | -11 ------------ Run | Yrd Used RIF Installer . | . Robots Hacked . | . Non-combat . | . Combat . | . Robot Hacks Applied . | . Relay Couplers Released . | . Fabnet Peak Effective % . | . Robots Rewired . | . Allies Hacked . | . Hacks Repelled . | . Allies | -11 -------- Run | Yrd Total Allies . | . Largest Group . | . Highest-Rated Group . | . Highest-Rated Ally . | . Total Orders . | . Ally Attacks . | . Total Damage . | . Kills . | . Allies Corrupted . | . Allies Melted . | . Intel | -11 ------- Run | Yrd Robot Analysis Total . | . Derelict Logs Recovered . | . Drone Launches . | . Drone Recoveries . | . Exploration | -11 ------------- Run | Yrd Turns Passed 1549 | 1549 Spaces Moved 129 | 129 Core 129 | 129 Treads . | . Legs . | . Wheels . | . Hover . | . Flight . | . Fastest Speed 50 | 50 Average Speed 50 | 50 Slowest Speed 50 | 50 Overloaded Moves . | . Propulsion Burnouts . | . Robots Hopped . | . Cave-ins Triggered . | . Exploration Rate (%) 19 | 19 Regions Visited . Branch Regions . Pre-discovered Areas . | . Known Exits Taken . | . Unknown Exits Taken . | . Scrap Searched . | . Spaces Dug . | . Terrain Destroyed . | . Melee . | . Projectile . | . AOE . | . Terrain Rammed . | . Walls Destroyed . | . Machines Disabled . | . Actions | -11 --------- Run | Yrd Total 1600 | 1600 Wait 1449 | 1449 Move 129 | 129 Hop . | . Pick Up 8 | 8 Fast Attach 1 | 1 Attach 1 | 1 Detach . | . Swap . | . Drop 2 | 2 Fire 10 | 10 Melee . | . Ram . | . Kick . | . Crush . | . Escape Stasis . | . Rewire . | . Trap . | . Miscellaneous . | . Route ------- -11/Scrapyard (discovered 1 exit: [*Mat]) History --------- Turn | Location | Event 14 | -11/Scrapyard | Discovered new exit (range 16) 1479 | -11/Scrapyard | Assembled infested the area 1535 | -11/Scrapyard | Core integrity fell below 50% 1544 | -11/Scrapyard | Core integrity fell below 20% 1550 | -11/Scrapyard | Destroyed by as-97450 with Assembled Heavy Rifle Last Messages --------------- 01516_ as-60472 destroyed. 01516_ as-97479 destroyed. 01518_ as-03495 destroyed. 01518_ as-34794 destroyed. 01518_ as-25913 destroyed. 01518_ as-18500 destroyed. 01519_ The unstable cave ceiling collapses. 01520_ as-39385 destroyed. 01520_ as-26133 destroyed. 01520_ as-68155 destroyed. 01523_ as-03169 destroyed. 01526_ D-53 Grenadier destroyed. 01527_ The unstable cave ceiling collapses. 01531_ as-71034 destroyed. 01532_ The unstable cave ceiling collapses. 01533_ D-53 Grenadier destroyed. 01535_ as-02017 destroyed. 01536_ The unstable cave ceiling collapses. 01547_ Sml. Laser destroyed. 01548_ The unstable cave ceiling collapses. Map ----- +----------------------------------------------------+ | ?????????????????????????????????????????????????? | | ?????????????????????????????????????????????????? | | ?????????????????????????????????????????????????? | | ?????????????????????????????????????????????????? | | ?????????????????????????????????????????????????? | | ?????????????????????????????????????????????????? | | ?????????????????????????????????????????????????? | | ?????????????????????????????????????????????????? | | ?????????????????????????????????????????????????? | | ?????????????????????????????????????????????????? | | ?????????????????????????????????????????????????? | | ?????????????????????????????????????????????????? | | ?????????????????????????????? a ????????????????? | | ???????????????????????????### ??????????????? | | ???????????????????????#### a ##?????????????? | | ???????????????????????# %% #?????????????? | | ???????????????????????# a #?????????????? | | ???????????????????????# ##????????????? | | ???????????????????????## # #????????????? | | ???????????????????????# # #????????????? | | ???????????????????????# #????????????? | | ???????????????????????# #????????????? | | ???????????????????????# #????????????? | | ???????????????????????# # #????????????? | | ???????????????????????# =% ## #????????????? | | ???????????????????????# @! #?????????????? | | ???????????????????????# =%] #?????????????? | | ?????????????????# ##### # #????????????? | | ?????????????????# #????????????? | | ??????????????????# #????????????? | | ??????????????????############# #????????????? | | ??????????????????????????????# ##????????????? | | ??????????????????????????????# #?????????????? | | ?????????????????????????????? #?????????????? | | ?????????????????????????????? #??############ | | ?????????????????????????????? # #??# ## | | ??????????????????????# ????? # ##??# = | | ??????????????????????# # ##### = | | ??????????????????????# = | | ??????????????????????# # * | | ??????????????????????# # ##### | | ??????????????????????# # #???# | | ??????????????????????# # #???# ## | | ??????????????????????#######??# #???#### ###### | | ???????????????????????????????# #??????# #????# | | ???????????????????????????????# #??????# #????? | | ???????????????????????????????# ??????? #????? | | ??????????????????????????????? ?????? # #????? | | ??????????????????????????????? ????? ????? | | ??????????????????????????????? ???? ?# ????? | +----------------------------------------------------+ Best States ------------- Heat Dissipation 25 Energy Generation 5 Energy Capacity 100 Matter Stores 300 Matter Capacity 300 Sight Range 16 Terrain Scan Density 10 Evasion (%) 50 Item Schematics ----------------- None Robot Schematics ------------------ None Fabricated ------------ Nothing Alien Tech Used ----------------- None Achievements -------------- Curiosity Killed The Cat Challenges ------------ None Game ------ Seed PlatingRecoilMask Manual? 0 Play Time 00:07:16 Cumulative 12.6 hours Start 2025.05.04 @ 17:12:46 End 2025.05.04 @ 17:16:22 Sessions 0 Manual Loads 0 Difficulty Rogue Special Mode None Game No. 8 Rogue 8 Adventurer 0 Explorer 0 Win Type - Total 0 Types 0/0/0/0/0/0/0/0/0 Lore% 9 Gallery% 16 Achievement% 16 Wizard Run 0 Options --------- Layout 1 ASCII 0 Keyboard 0 Movement Numpad Keybinds 0 Fullscreen 1 Font 24/Smallcaps Map View 50x35 Zoom Use 0% Tactical HUD 1 Map Filters NONE Filters NONE Steam 1 RUN: d7323aef-deba-420b-abd2-8f659567e41a